fUSD/lending_fUSD_20250302
["ID","MTS","AMOUNT","RATE_DAILY","PERIOD"]
[355149716,1740936645663,-500.0,0.00025447,2]
[355149718,1740936645675,-500.0,0.00025447,2]
[355149720,1740936645685,-500.0,0.00025447,2]
[355149722,1740936645695,-500.0,0.00025447,2]
[355149724,1740936645706,-500.0,0.00025447,2]
[355149726,1740936645716,-500.0,0.00025447,2]
[355149728,1740936645725,-500.0,0.00025447,2]
[355149731,1740936645735,-708.04,0.00025447,2]
[355149734,1740936645744,-500.0,0.00025447,2]
[355149736,1740936645754,-500.0,0.00025447,2]
[355149738,1740936645763,-714.91,0.00025447,2]
[355149741,1740936645773,-500.0,0.00025447,2]
[355149743,1740936645783,-500.0,0.00025447,2]
[355149746,1740936645792,-115.92169722,0.00025447,2]
[355149752,1740936645814,-500.0,0.00024899,2]
[355149755,1740936645823,-384.07830278,0.00025447,2]
[355149758,1740936645833,-500.0,0.00025447,2]
[355149761,1740936645844,-500.0,0.00025447,2]
[355149764,1740936645854,-555.82,0.00025447,2]
[355149767,1740936645866,-609.57,0.00025447,2]
[355149770,1740936645877,-722.13,0.00025447,2]
[355149773,1740936645887,-500.0,0.00025447,2]
[355149777,1740936645897,-500.0,0.00025447,2]
[355149781,1740936645907,-784.49,0.00025447,2]
[355149785,1740936645916,-500.0,0.00025447,2]
[355149789,1740936645926,-500.0,0.00025447,2]
[355149793,1740936645935,-259.25169722,0.00025447,2]
[355149798,1740936645948,-537.13830278,0.00025447,2]
[355149802,1740936645958,-395.27379688,0.00025447,2]
[355149806,1740936645968,-783.83,0.00025447,2]
[355149809,1740936645977,-500.0,0.00025447,2]
[355149812,1740936645987,-500.0,0.00025447,2]
[355149815,1740936645997,-65.3823177,0.00025447,2]
[355149819,1740936646013,-434.6176823,0.00025447,2]
[355149822,1740936646023,-500.0,0.00025447,2]
[355149823,1740936646034,-321.3905374,0.00025447,120]
[355149826,1740936646046,-272.5494626,0.00025447,120]
[355149828,1740936646056,-595.44,0.00025447,2]
[355149830,1740936646066,-471.62965847,0.00025447,2]
[355149832,1740936646079,-213.10034153,0.00025447,2]
[355149834,1740936646089,-324.34685504,0.00025447,2]
[355149836,1740936646101,-289.88314496,0.00025447,2]
[355149838,1740936646111,-478.78619122,0.00025447,2]
[355149841,1740936646225,-21.21380878,0.00025447,2]
[355149842,1740936646236,-706.47,0.00025447,2]
[355149843,1740936646246,-500.0,0.00025447,2]
[355149844,1740936646256,-500.0,0.00025447,2]
[355149845,1740936646266,-500.0,0.00025447,2]
[355149846,1740936646276,-500.0,0.00025447,2]
[355149847,1740936646286,-500.0,0.00025447,2]
[355149848,1740936646296,-534.86,0.00025447,2]
[355149849,1740936646306,-500.0,0.00025447,2]
[355149850,1740936646315,-500.0,0.00025447,2]
[355149851,1740936646325,-500.0,0.00025447,2]
[355149852,1740936646335,-500.0,0.00025447,2]
[355149853,1740936646346,-500.0,0.00025447,2]
[355149854,1740936646356,-500.0,0.00025447,2]
[355149855,1740936646369,-571.71,0.00025447,2]
[355149856,1740936646381,-500.0,0.00025447,2]
[355149857,1740936646392,-500.0,0.00025447,2]
[355149858,1740936646403,-595.9,0.00025447,2]
[355149859,1740936646414,-500.0,0.00025447,2]
[355149860,1740936646425,-825.14,0.00025447,2]
[355149862,1740936646435,-853.07,0.00025447,2]
[355149864,1740936646446,-902.34,0.00025447,2]
[355149866,1740936646457,-671.39,0.00025447,2]
[355149868,1740936646467,-500.0,0.00025447,2]
[355149870,1740936646479,-846.77,0.00025447,2]
[355149872,1740936646496,-500.0,0.00025447,2]
[355149874,1740936646517,-889.33,0.00025447,2]
[355149876,1740936646526,-723.76,0.00025447,2]
[355149878,1740936646536,-986.05,0.00025447,2]
[355149880,1740936646546,-511.89,0.00025447,2]
[355149882,1740936646557,-1272.09,0.00025447,2]
[355149884,1740936646567,-552.48,0.00025447,2]
[355149886,1740936646577,-152.55593627,0.00025473,2]
[355149888,1740936646587,-157.8427041,0.00025473,2]
[355149890,1740936646597,-500.0,0.00025473,2]
[355149892,1740936646606,-610.2,0.00025478,2]
[355149894,1740936646618,-500.0,0.00025478,2]
[355149896,1740936646628,-1363.34,0.00025478,2]
[355149898,1740936646639,-1381.45,0.00025478,2]
[355149900,1740936646649,-338.675155,0.00025478,2]
[355149902,1740936646659,-943.25,0.00025478,2]
[355149904,1740936646669,-1870.42,0.00025478,2]
[355149906,1740936646679,-500.0,0.00025478,2]
[355149907,1740936646689,-1107.04,0.00025478,2]
[355149908,1740936646698,-355.414101,0.00025478,2]
[355149909,1740936646709,-2678.19,0.00025478,2]
[355149911,1740936646718,-1356.29,0.00025478,2]
[355149912,1740936646728,-1871.2,0.00025478,2]
[355149913,1740936646738,-1213.06,0.00025478,2]
[355149914,1740936646747,-1601.31,0.00025478,2]
[355149916,1740936646758,-1696.09,0.00025478,2]
[355149917,1740936646767,-925.66,0.00025478,2]
[355149918,1740936646777,-1548.63,0.00025478,2]
[355149919,1740936646787,-435.24440489,0.00025478,2]
[355149920,1740936646802,-559.20559511,0.00025478,2]
[355149921,1740936646812,-477.71529375,0.00025478,2]
[355149922,1740936646832,-260.2014919,0.00025478,2]
[355149923,1740936646844,-1101.05321435,0.00025478,2]
[355149925,1740936646854,-893.73141704,0.00025478,2]
[355149927,1740936646868,-1347.35858296,0.00025478,2]
[355149929,1740936646877,-1192.77,0.00025478,2]
[355149931,1740936646887,-1027.42,0.00025478,2]
[355149933,1740936646897,-1424.18,0.00025478,2]
[355149935,1740936646907,-613.43,0.00025478,2]
[355149937,1740936646918,-500.0,0.00025478,2]
[355149939,1740936646927,-1363.11,0.00025478,2]
[355149940,1740936646937,-618.55,0.00025478,2]
[355149942,1740936646947,-647.85,0.00025478,2]
[355149944,1740936646956,-1050.23,0.00025478,2]
[355149946,1740936646965,-623.46,0.00025478,2]
[355149948,1740936646975,-500.0,0.00025478,2]
[355149950,1740936646985,-500.0,0.00025479,2]
[355149952,1740936646994,-500.0,0.00025479,2]
[355149954,1740936647003,-560.62,0.00025479,2]
[355149956,1740936647012,-500.0,0.00025479,2]
[355149958,1740936647022,-563.66,0.00025479,2]
[355149960,1740936647031,-500.0,0.00025479,2]
[355149961,1740936647041,-601.08,0.00025479,2]
[355149962,1740936647051,-500.0,0.00025479,2]
[355149963,1740936647061,-500.0,0.00025479,2]
[355149964,1740936647070,-500.0,0.00025479,2]
[355149965,1740936647080,-500.0,0.00025479,2]
[355149966,1740936647089,-500.0,0.00025479,2]
[355149967,1740936647099,-539.3,0.00025479,2]
[355149968,1740936647108,-500.0,0.00025479,2]
[355149969,1740936647120,-500.14,0.00025479,2]
[355149970,1740936647130,-500.0,0.00025479,2]
[355149971,1740936647139,-500.0,0.00025479,2]
[355149972,1740936647149,-500.0,0.00025479,2]
[355149973,1740936647158,-584.1,0.00025479,2]
[355149974,1740936647168,-500.0,0.00025479,2]
[355149975,1740936647177,-500.0,0.00025479,2]
[355149976,1740936647187,-545.66,0.00025479,2]
[355149977,1740936647196,-500.0,0.00025479,2]
[355149978,1740936647206,-500.0,0.00025479,2]
[355149979,1740936647216,-500.0,0.00025479,2]
[355149980,1740936647226,-500.0,0.00025479,2]
[355149981,1740936647236,-500.0,0.00025479,2]
[355149982,1740936647246,-500.0,0.00025479,2]
[355149983,1740936647256,-500.0,0.00025479,2]
[355149984,1740936647267,-500.0,0.00025479,2]
[355149985,1740936647276,-500.0,0.00025479,2]
[355149986,1740936647287,-526.45,0.00025479,2]
[355149987,1740936647298,-500.0,0.00025479,2]
[355149988,1740936647309,-561.12,0.00025479,2]
[355149989,1740936647319,-500.0,0.00025479,2]
[355149990,1740936647329,-533.44,0.00025479,2]
[355149991,1740936647339,-748.22,0.00025479,2]
[355149992,1740936647349,-500.0,0.00025479,2]
[355149993,1740936647359,-500.0,0.00025479,2]
[355149994,1740936647371,-500.0,0.00025479,2]
[355149995,1740936647381,-845.83,0.00025479,2]
[355149996,1740936647391,-911.47,0.00025479,2]
[355149997,1740936647400,-551.99,0.00025479,2]
[355149998,1740936647410,-500.0,0.00025479,2]
[355149999,1740936647420,-823.11,0.00025479,2]
[355150000,1740936647430,-786.8,0.00025479,2]
[355150001,1740936647440,-500.0,0.00025479,2]
[355150002,1740936647450,-1495.84,0.00025479,2]
[355150003,1740936647460,-500.0,0.00025479,2]
[355150004,1740936647470,-597.31,0.00025479,2]
[355150005,1740936647480,-688.82,0.00025479,2]
[355150006,1740936647494,-500.0,0.00025479,2]
[355150007,1740936647504,-947.42,0.00025479,2]
[355150008,1740936647515,-1251.58,0.00025479,2]
[355150009,1740936647524,-500.0,0.00025479,2]
[355150010,1740936647537,-1020.64,0.00025479,2]
[355150011,1740936647548,-2345.36,0.00025479,2]
[355150012,1740936647557,-1562.13,0.00025479,2]
[355150013,1740936647567,-1688.5,0.00025479,2]
[355150014,1740936647578,-1057.44,0.00025479,2]
[355150015,1740936647587,-1830.8,0.00025479,2]
[355150016,1740936647597,-1336.41,0.00025479,2]
[355150017,1740936647607,-767.39,0.00025479,2]
[355150018,1740936647621,-2213.46,0.00025479,2]
[355150019,1740936647631,-500.0,0.00025479,2]
[355150020,1740936647640,-1366.85,0.00025479,2]
[355150021,1740936647650,-500.0,0.00025479,2]
[355150022,1740936647659,-500.0,0.00025479,2]
[355150023,1740936647669,-688.32,0.00025479,2]
[355150024,1740936647678,-2063.11,0.00025479,2]
[355150025,1740936647687,-500.0,0.00025479,2]
[355150027,1740936647697,-500.0,0.00025479,2]
[355150028,1740936647706,-500.0,0.00025479,2]
[355150029,1740936647717,-500.0,0.00025479,2]
[355150030,1740936647727,-620.51,0.00025479,2]
[355150031,1740936647736,-1466.04,0.00025479,2]
[355150032,1740936647745,-518.56,0.00025479,2]
[355150033,1740936647754,-1099.43,0.00025479,2]
[355150034,1740936647763,-1231.49,0.00025479,2]
[355150036,1740936647772,-500.0,0.00025479,2]
[355150038,1740936647782,-500.0,0.00025479,2]
[355150040,1740936647791,-565.79,0.00025479,2]
[355150042,1740936647800,-594.39,0.00025479,2]
[355150043,1740936647810,-500.0,0.00025479,2]
[355150045,1740936647819,-1282.11,0.00025479,2]
[355150056,1740936647918,-500.0,0.00025479,2]
[355150059,1740936647928,-500.0,0.00025479,2]
[355150060,1740936647937,-500.0,0.00025479,2]
[355150063,1740936647947,-1287.52,0.00025479,2]
[355150064,1740936647957,-691.44,0.00025479,2]
[355150066,1740936647967,-1137.27,0.00025479,2]
[355150069,1740936647977,-500.0,0.00025479,2]
[355150070,1740936647988,-975.02,0.00025479,2]
[355150073,1740936647999,-500.0,0.00025479,2]
[355150075,1740936648009,-1326.84,0.00025479,2]
[355150076,1740936648018,-601.46,0.00025479,2]
[355150078,1740936648028,-1957.9,0.00025479,2]
[355150080,1740936648038,-8310.8,0.00025479,2]
[355150082,1740936648048,-810.66,0.00025479,2]
[355150084,1740936648059,-799.92,0.00025479,2]
[355150086,1740936648069,-500.0,0.00025479,2]
[355150088,1740936648078,-500.0,0.00025479,2]
[355150090,1740936648088,-1401.29,0.00025479,2]
[355150092,1740936648098,-500.0,0.00025479,2]
[355150094,1740936648108,-500.0,0.00025479,2]
[355150096,1740936648124,-1973.31,0.00025479,2]
[355150098,1740936648134,-775.25,0.00025479,2]
[355150100,1740936648147,-7254.96,0.00025479,2]
[355150102,1740936648157,-500.0,0.00025479,2]
[355150104,1740936648166,-318.1165487,0.00025543,2]
[355150106,1740936648176,-502.60691257,0.00025555,4]
[355150108,1740936648186,-2305.69924369,0.0002559,2]
[355150110,1740936648198,-2723.45964108,0.00025603,2]
[355150112,1740936648208,-167.85557203,0.0002562,2]
[355150114,1740936648219,-200.0,0.00025667,2]
[355150116,1740936648229,-500.0,0.00025719,2]
[355150118,1740936648239,-505.79,0.00025719,2]
[355150120,1740936648249,-500.0,0.00025719,2]
[355150122,1740936648260,-500.0,0.0002572,2]
[355150124,1740936648270,-500.0,0.0002572,2]
[355150126,1740936648280,-36.53134678,0.0002572,2]
[355150129,1740936648295,-208.04865322,0.0002572,2]
[355150131,1740936648306,-500.0,0.0002572,2]
[355150133,1740936648317,-201.81671271,0.0002572,2]
[355150135,1740936648327,-500.0,0.0002572,2]
[355150136,1740936648337,-500.0,0.0002572,2]
[355150138,1740936648347,-500.0,0.0002572,2]
[355150140,1740936648358,-500.0,0.0002572,2]
[355150142,1740936648372,-500.0,0.0002572,2]
[355150144,1740936648382,-165.6077913,0.0002572,2]
[355150153,1740936648466,-181.26074012,0.0002493,2]
[355150155,1740936648478,-470.17776716,0.00025173,2]
[355150157,1740936648494,-29.82223284,0.00025173,2]
[355150159,1740936648504,-334.3922087,0.0002572,2]
[355150161,1740936648514,-347.80923163,0.0002572,2]
[355150166,1740936648554,-152.19076837,0.0002572,2]
[355150168,1740936648565,-543.451404,0.0002572,2]
[355150170,1740936648576,-333.65481526,0.0002572,2]
[355150174,1740936648606,-166.34518474,0.0002572,2]
[355150175,1740936648622,-222.53863861,0.0002572,2]
[355150178,1740936648635,-32.58136139,0.0002572,2]
[355150180,1740936648646,-500.0,0.0002572,2]
[355150182,1740936648657,-500.0,0.0002572,2]
[355150184,1740936648671,-500.0,0.0002572,2]
[355150186,1740936648682,-464.63598656,0.0002572,2]
[355150312,1740936650213,-642.0,0.00023935,2]
[355150314,1740936650225,-500.0,0.00024897,2]
[355150316,1740936650235,-500.0,0.00024897,2]
[355150318,1740936650246,-500.0,0.00024898,2]
[355150320,1740936650256,-500.0,0.00024898,2]
[355150322,1740936650267,-505.08,0.00025172,2]
[355150324,1740936650277,-221.2,0.00025172,2]
[355150326,1740936650288,-500.0,0.00025447,2]
[355150328,1740936650298,-177.08082207,0.0002571,2]
[355150330,1740936650307,-78.95100993,0.0002572,2]
[355150332,1740936650318,-500.0,0.0002572,2]
[355150334,1740936650328,-500.0,0.0002572,2]
[355150336,1740936650338,-500.0,0.0002572,2]
[355150338,1740936650348,-500.0,0.0002572,2]
[355150340,1740936650358,-500.0,0.0002572,2]
[355150342,1740936650372,-500.0,0.0002572,2]
[355150344,1740936650382,-566.05597841,0.0002572,2]
[355150346,1740936650393,-500.0,0.0002572,2]
[355150348,1740936650403,-500.0,0.0002572,2]
[355150350,1740936650414,-500.0,0.0002572,2]
[355150352,1740936650424,-500.0,0.0002572,2]
[355150354,1740936650434,-500.0,0.0002572,2]
[355150356,1740936650444,-269.40168959,0.0002572,2]
[355150359,1740936650464,-230.59831041,0.0002572,2]
[355150361,1740936650475,-500.0,0.0002572,2]
[355150363,1740936650485,-500.0,0.0002572,2]
[355150366,1740936650510,-500.0,0.0002572,2]
[355150368,1740936650523,-500.0,0.0002572,2]
[355150371,1740936650535,-500.0,0.0002572,2]
[355150373,1740936650548,-500.0,0.0002572,2]
[355150375,1740936650558,-500.0,0.0002572,2]
[355150377,1740936650570,-500.0,0.0002572,2]
[355150379,1740936650583,-402.79647447,0.0002572,2]
[355150381,1740936650594,-500.0,0.0002572,2]
[355150383,1740936650604,-500.0,0.0002572,2]
[355150386,1740936650618,-587.3,0.0002572,2]
[355150388,1740936650631,-500.0,0.0002572,2]
[355150390,1740936650642,-583.26,0.0002572,2]
[355150392,1740936650652,-170.38447685,0.0002572,2]
[355150394,1740936650663,-500.0,0.0002572,2]
[355150396,1740936650674,-500.0,0.0002572,2]
[355150398,1740936650685,-313.04149249,0.0002572,2]
[355150401,1740936650697,-500.0,0.0002572,2]
[355150403,1740936650707,-500.0,0.0002572,2]
[355150405,1740936650718,-500.0,0.0002572,2]
[355150407,1740936650729,-500.0,0.0002572,2]
[355150409,1740936650740,-500.0,0.0002572,2]
[355150411,1740936650751,-527.29,0.0002572,2]
[355150413,1740936650762,-500.0,0.0002572,2]
[355150415,1740936650773,-500.0,0.0002572,2]
[355150418,1740936650785,-500.0,0.0002572,2]
[355150420,1740936650796,-500.0,0.0002572,2]
[355150422,1740936650807,-249.32294779,0.0002572,2]
[355150424,1740936650818,-500.0,0.0002572,2]
[355150426,1740936650829,-500.0,0.0002572,2]
[355150428,1740936650840,-500.0,0.0002572,2]
[355150430,1740936650850,-500.0,0.0002572,2]
[355150432,1740936650861,-500.0,0.0002572,2]
[355150434,1740936650874,-500.0,0.0002572,2]
[355150436,1740936650887,-500.0,0.0002572,2]
[355150438,1740936650897,-500.0,0.0002572,2]
[355150441,1740936650909,-500.0,0.0002572,2]
[355150443,1740936650919,-500.0,0.0002572,2]
[355150444,1740936650929,-959.76,0.0002572,2]
[355150447,1740936650941,-1153.41,0.0002572,2]
[355150449,1740936650951,-2270.13,0.0002572,2]
[355150451,1740936650962,-1000.0,0.0002572,2]
[355150453,1740936650972,-500.0,0.0002572,2]
[355150455,1740936650983,-1367.43,0.0002572,2]
[355150457,1740936650994,-500.0,0.0002572,2]
[355150460,1740936651012,-1489.98,0.0002572,2]
[355150462,1740936651023,-500.0,0.0002572,2]
[355150464,1740936651034,-500.0,0.0002572,2]
[355150466,1740936651046,-637.17,0.0002572,2]
[355150468,1740936651057,-504.63,0.0002572,2]
[355150470,1740936651068,-500.0,0.0002572,2]
[355150472,1740936651081,-500.0,0.0002572,2]
[355150473,1740936651092,-1048.52,0.0002572,2]
[355150474,1740936651106,-500.0,0.0002572,2]
[355150475,1740936651120,-2495.65,0.0002572,2]
[355150476,1740936651132,-500.0,0.0002572,2]
[355150477,1740936651144,-592.96,0.0002572,2]
[355150478,1740936651158,-2584.12,0.0002572,2]
[355150479,1740936651170,-634.06,0.0002572,2]
[355150480,1740936651182,-193.81,0.0002572,2]
[355150481,1740936651194,-500.0,0.0002572,2]
[355150482,1740936651207,-500.0,0.0002572,2]
[355150483,1740936651220,-1864.87,0.0002572,2]
[355150484,1740936651232,-900.18,0.0002572,2]
[355150485,1740936651244,-500.0,0.0002572,2]
[355150486,1740936651255,-828.36,0.0002572,2]
[355150487,1740936651266,-1132.79,0.0002572,2]
[355150488,1740936651278,-656.73,0.0002572,2]
[355150489,1740936651290,-500.0,0.0002572,2]
[355150490,1740936651301,-985.57,0.0002572,2]
[355150491,1740936651314,-764.79,0.0002572,2]
[355150492,1740936651327,-582.13940113,0.0002572,2]
[355150493,1740936651340,-500.0,0.0002572,2]
[355150494,1740936651352,-500.0,0.0002572,2]
[355150495,1740936651365,-537.49,0.0002572,2]
[355150496,1740936651379,-500.0,0.0002572,2]
[355150497,1740936651390,-1124.47,0.0002572,2]
[355150498,1740936651403,-500.0,0.0002572,2]
[355150499,1740936651415,-500.0,0.0002572,2]
[355150500,1740936651427,-500.0,0.0002572,2]
[355150501,1740936651438,-500.0,0.00025721,2]
[355150502,1740936651449,-500.0,0.00025721,2]
[355150503,1740936651461,-500.0,0.00025721,2]
[355150504,1740936651471,-500.0,0.00025721,2]
[355150505,1740936651482,-500.0,0.00025721,2]
[355150506,1740936651498,-500.0,0.00025721,2]
[355150507,1740936651515,-500.0,0.00025721,2]
[355150508,1740936651527,-708.04,0.00025721,2]
[355150509,1740936651540,-500.0,0.00025721,2]
[355150510,1740936651552,-500.0,0.00025721,2]
[355150511,1740936651565,-714.91,0.00025721,2]
[355150512,1740936651577,-500.0,0.00025721,2]
[355150513,1740936651589,-500.0,0.00025721,2]
[355150514,1740936651601,-500.0,0.00025721,2]
[355150515,1740936651613,-500.0,0.00025721,2]
[355150516,1740936651631,-500.0,0.00025721,2]
[355150517,1740936651644,-555.82,0.00025721,2]
[355150518,1740936651656,-609.57,0.00025721,2]
[355150519,1740936651669,-722.13,0.00025721,2]
[355150520,1740936651683,-500.0,0.00025721,2]
[355150521,1740936651696,-500.0,0.00025721,2]
[355150522,1740936651709,-784.49,0.00025721,2]
[355150523,1740936651724,-500.0,0.00025721,2]
[355150524,1740936651737,-500.0,0.00025721,2]
[355150525,1740936651749,-796.39,0.00025721,2]
[355150526,1740936651762,-783.83,0.00025721,2]
[355150527,1740936651774,-354.84000026,0.00025721,2]
[355150528,1740936651786,-500.0,0.00025721,2]
[355150529,1740936651797,-500.0,0.00025721,2]
[355150530,1740936651808,-535.25,0.00025721,2]
[355150531,1740936651820,-593.94,0.00025721,120]
[355150532,1740936651831,-595.44,0.00025721,2]
[355150533,1740936651842,-684.73,0.00025721,2]
[355150534,1740936651854,-614.23,0.00025721,2]
[355150535,1740936651864,-500.0,0.00025721,2]
[355150536,1740936651879,-706.47,0.00025721,2]
[355150537,1740936651890,-500.0,0.00025721,2]
[355150538,1740936651901,-500.0,0.00025721,2]
[355150539,1740936651912,-500.0,0.00025721,2]
[355150540,1740936651923,-500.0,0.00025721,2]
[355150541,1740936651934,-500.0,0.00025721,2]
[355150542,1740936651944,-500.0,0.00025721,2]
[355150543,1740936651955,-500.0,0.00025721,2]
[355150544,1740936651966,-500.0,0.00025721,2]
[355150545,1740936651977,-500.0,0.00025721,2]
[355150546,1740936651988,-500.0,0.00025721,2]
[355150547,1740936651999,-500.0,0.00025721,2]
[355150548,1740936652009,-571.71,0.00025721,2]
[355150549,1740936652024,-500.0,0.00025721,2]
[355150550,1740936652035,-500.0,0.00025721,2]
[355150551,1740936652046,-595.9,0.00025721,2]
[355150552,1740936652057,-500.0,0.00025721,2]
[355150553,1740936652069,-825.14,0.00025721,2]
[355150554,1740936652079,-853.07,0.00025721,2]
[355150555,1740936652090,-902.34,0.00025721,2]
[355150556,1740936652101,-671.39,0.00025721,2]
[355150557,1740936652111,-500.0,0.00025721,2]
[355150558,1740936652125,-846.77,0.00025721,2]
[355150559,1740936652138,-500.0,0.00025721,2]
[355150560,1740936652149,-889.33,0.00025721,2]
[355150561,1740936652160,-723.76,0.00025721,2]
[355150562,1740936652171,-986.05,0.00025721,2]
[355150563,1740936652183,-511.89,0.00025721,2]
[355150564,1740936652196,-1272.09,0.00025721,2]
[355150565,1740936652207,-552.48,0.00025721,2]
[355150566,1740936652219,-151.90880218,0.00025721,2]
[355150567,1740936652231,-1363.34,0.00025752,2]
[355150568,1740936652244,-1381.45,0.00025752,2]
[355150569,1740936652256,-338.675155,0.00025752,2]
[355150570,1740936652267,-625.32380578,0.00025752,2]
[355150571,1740936652284,-317.92619422,0.00025752,2]
[355150572,1740936652295,-1870.42,0.00025752,2]
[355150573,1740936652306,-500.0,0.00025752,2]
[355150574,1740936652317,-1107.04,0.00025752,2]
[355150575,1740936652328,-355.414101,0.00025752,2]
[355150576,1740936652340,-2678.19,0.00025752,2]
[355150577,1740936652351,-1356.29,0.00025752,2]
[355150578,1740936652362,-1871.2,0.00025752,2]
[355150579,1740936652376,-1213.06,0.00025752,2]
[355150580,1740936652387,-1601.31,0.00025752,2]
[355150581,1740936652399,-542.57466703,0.00025752,2]
[355150582,1740936652720,-1153.51533297,0.00025752,2]
[355150583,1740936652730,-925.66,0.00025752,2]
[355150584,1740936652740,-1548.63,0.00025752,2]
[355150585,1740936652751,-994.45,0.00025752,2]
[355150586,1740936652762,-1838.97,0.00025752,2]
[355150587,1740936652786,-2241.09,0.00025752,2]
[355150588,1740936652796,-534.58356124,0.00025752,2]
[355150589,1740936652809,-658.18643876,0.00025752,2]
[355150590,1740936652819,-1027.42,0.00025752,2]
[355150591,1740936652829,-1424.18,0.00025752,2]
[355150592,1740936652840,-613.43,0.00025752,2]
[355150593,1740936652851,-500.0,0.00025752,2]
[355150594,1740936652861,-1363.11,0.00025752,2]
[355150595,1740936652874,-618.55,0.00025752,2]
[355150596,1740936652884,-647.85,0.00025752,2]
[355150597,1740936652894,-631.41404111,0.00025752,2]
[355150598,1740936652907,-418.81595889,0.00025752,2]
[355150599,1740936652918,-623.46,0.00025752,2]
[355150600,1740936652928,-500.0,0.00025752,2]
[355150601,1740936652939,-500.0,0.00025753,2]
[355150602,1740936652949,-500.0,0.00025753,2]
[355150603,1740936652960,-352.93745268,0.00025753,2]
[355150604,1740936652973,-207.68254732,0.00025753,2]
[355150605,1740936652983,-500.0,0.00025753,2]
[355150606,1740936652994,-563.66,0.00025753,2]
[355150607,1740936653005,-500.0,0.00025753,2]
[355150608,1740936653016,-601.08,0.00025753,2]
[355150609,1740936653026,-500.0,0.00025753,2]
[355150610,1740936653036,-386.0739262,0.00025753,2]
[355150611,1740936653048,-113.9260738,0.00025753,2]
[355150612,1740936653059,-500.0,0.00025753,2]
[355150613,1740936653068,-500.0,0.00025753,2]
[355150614,1740936653078,-522.26073826,0.00025753,2]
[355150615,1740936653089,-539.3,0.00025753,2]
[355150616,1740936653099,-254.96,0.00025753,2]
[355150617,1740936653110,-500.14,0.00025753,2]
[355150618,1740936653124,-5.43810831,0.00025753,2]
[355150619,1740936653137,-494.56189169,0.00025753,2]
[355150620,1740936653148,-493.44973389,0.00025753,2]
[355150621,1740936653159,-500.0,0.00025753,2]
[355150622,1740936653170,-584.1,0.00025753,2]
[355150623,1740936653181,-500.0,0.00025753,2]
[355150624,1740936653192,-219.52778592,0.00025753,2]
[355150625,1740936653207,-280.47221408,0.00025753,2]
[355150626,1740936653219,-545.66,0.00025753,2]
[355150627,1740936653230,-500.0,0.00025753,2]
[355150628,1740936653241,-500.0,0.00025753,2]
[355150629,1740936653251,-500.0,0.00025753,2]
[355150630,1740936653262,-500.0,0.00025753,2]
[355150631,1740936653273,-500.0,0.00025753,2]
[355150632,1740936653290,-500.0,0.00025753,2]
[355150633,1740936653301,-500.0,0.00025753,2]
[355150634,1740936653313,-500.0,0.00025753,2]
[355150635,1740936653325,-500.0,0.00025753,2]
[355150636,1740936653336,-526.45,0.00025753,2]